fUST/lending_fUST_20240630
["ID","MTS","AMOUNT","RATE_DAILY","PERIOD"]
[330758339,1719759041299,-862.401964,0.00015297,2]
[330758340,1719759041308,-159.158324,0.00015298,2]
[330758343,1719759041318,-153.907517,0.00015298,2]
[330758344,1719759041328,-500.0,0.00015298,2]
[330758346,1719759041337,-500.0,0.00015298,2]
[330758348,1719759041347,-500.0,0.00015298,2]
[330758350,1719759041356,-500.0,0.00015298,2]
[330758353,1719759041366,-188.09167626,0.00015298,2]
[330758355,1719759041375,-539.08330788,0.00015298,2]
[330758357,1719759041384,-179.015247,0.00015298,2]
[330758358,1719759041393,-151.0,0.00015298,2]
[330758361,1719759041403,-151.0,0.00015298,2]
[330758362,1719759041413,-151.0,0.00015298,2]
[330758365,1719759041422,-151.0,0.00015298,2]
[330758367,1719759041432,-151.0,0.00015298,2]
[330758369,1719759041441,-151.0,0.00015298,2]
[330758371,1719759041450,-235.822918,0.00015298,2]
[330758373,1719759041460,-276.786709,0.00015298,2]
[330758375,1719759041470,-276.786709,0.00015298,2]
[330758377,1719759041479,-276.786709,0.00015298,2]
[330758379,1719759041489,-276.786709,0.00015298,2]
[330758381,1719759041498,-276.786709,0.00015298,2]
[330758383,1719759041507,-276.786709,0.00015298,2]
[330758385,1719759041516,-250.2275,0.00015298,2]
[330758387,1719759041526,-250.2275,0.00015298,2]
[330758389,1719759041534,-250.2275,0.00015298,2]
[330758391,1719759041544,-250.2275,0.00015298,2]
[330758393,1719759041554,-250.2275,0.00015298,2]
[330758395,1719759041565,-250.2275,0.00015298,2]
[330758397,1719759041574,-160.005492,0.00015298,2]
[330758399,1719759041583,-160.005492,0.00015298,2]
[330758401,1719759041593,-160.005492,0.00015298,2]
[330758403,1719759041602,-160.005492,0.00015298,2]
[330758405,1719759041611,-198.243534,0.00015298,2]
[330758407,1719759041620,-198.243534,0.00015298,2]
[330758409,1719759041630,-198.243534,0.00015298,2]
[330758411,1719759041639,-198.243534,0.00015298,2]
[330758412,1719759041648,-198.243534,0.00015298,2]
[330758414,1719759041658,-198.243532,0.00015298,2]
[330758417,1719759041668,-151.0,0.00015298,2]
[330758419,1719759041678,-151.0,0.00015298,2]
[330758420,1719759041687,-11591.3,0.00015298,2]
[330758423,1719759041697,-500.0,0.00015299,2]
[330758425,1719759041708,-500.0,0.00015299,2]
[330758427,1719759041717,-793.71,0.00015299,2]
[330758429,1719759041727,-614.86170782,0.00015299,2]
[330758431,1719759041736,-500.0,0.00015299,2]
[330758433,1719759041746,-505.69048026,0.00015299,2]
[330758435,1719759041755,-352.42377064,0.00015299,2]
[330758437,1719759041765,-500.0,0.00015299,2]
[330758439,1719759041774,-500.0,0.00015299,2]
[330758440,1719759041784,-500.0,0.00015299,2]
[330758443,1719759041793,-500.0,0.00015299,2]
[330758445,1719759041802,-500.0,0.00015299,2]
[330758446,1719759041812,-500.0,0.00015299,2]
[330758447,1719759041821,-500.0,0.00015299,2]
[330758448,1719759041830,-546.67653894,0.00015299,2]
[330758449,1719759041839,-500.0,0.00015299,2]
[330758450,1719759041848,-500.0,0.00015299,2]
[330758451,1719759041857,-500.0,0.00015299,2]
[330758452,1719759041867,-500.0,0.00015299,2]
[330758453,1719759041876,-508.10731312,0.00015299,2]
[330758454,1719759041884,-711.91,0.00015299,2]
[330758455,1719759041893,-500.0,0.00015299,2]
[330758456,1719759041903,-500.0,0.00015299,2]
[330758457,1719759041912,-500.0,0.00015299,2]
[330758458,1719759041921,-500.0,0.00015299,2]
[330758459,1719759041930,-508.18186603,0.00015299,2]
[330758460,1719759041939,-1734.63,0.00015299,2]
[330758461,1719759041948,-500.0,0.00015299,2]
[330758462,1719759041957,-504.34795031,0.00015299,2]
[330758463,1719759041967,-838.23,0.00015299,2]
[330758464,1719759041976,-651.93,0.00015299,2]
[330758465,1719759041985,-237.5712589,0.00015299,2]
[330758466,1719759041998,-500.0,0.00015299,2]
[330758467,1719759042007,-500.0,0.00015299,2]
[330758469,1719759042016,-500.0,0.00015299,2]
[330758471,1719759042025,-500.0,0.00015299,2]
[330758473,1719759042035,-500.0,0.00015299,2]
[330758474,1719759042044,-500.0,0.00015299,2]
[330758477,1719759042054,-506.07113532,0.00015299,2]
[330758479,1719759042064,-500.0,0.00015299,2]
[330758480,1719759042077,-647.25,0.00015299,2]
[330758483,1719759042087,-501.9053898,0.00015299,2]
[330758484,1719759042096,-500.0,0.00015299,2]
[330758486,1719759042106,-502.60302224,0.00015299,2]
[330758488,1719759042115,-560.18,0.00015299,2]
[330758490,1719759042124,-500.0,0.00015299,2]
[330758492,1719759042134,-1122.76,0.00015299,2]
[330758495,1719759042144,-500.0,0.00015299,2]
[330758496,1719759042154,-625.34,0.00015299,2]
[330758498,1719759042164,-3434.66,0.00015299,2]
[330758501,1719759042174,-507.55763966,0.00015299,2]
[330758502,1719759042183,-504.43843048,0.00015299,2]
[330758505,1719759042192,-356.11122265,0.00015299,2]
[330758506,1719759042203,-500.0,0.00015299,2]
[330758508,1719759042212,-500.0,0.00015299,2]
[330758511,1719759042222,-784.31,0.00015299,2]
[330758512,1719759042232,-208.584817,0.00015299,2]
[330758515,1719759042242,-982.52,0.00015299,2]
[330758516,1719759042254,-353.80395665,0.00015299,2]
[330758519,1719759042263,-453.7514208,0.00015299,2]
[330758521,1719759042273,-500.0,0.00015299,2]
[330758523,1719759042282,-500.0,0.00015299,2]
[330758525,1719759042292,-500.0,0.00015299,2]
[330758527,1719759042301,-500.0,0.00015299,2]
[330758529,1719759042310,-500.0,0.00015299,2]
[330758530,1719759042319,-683.48,0.00015299,2]
[330758533,1719759042328,-152.834834,0.00015299,2]
[330758534,1719759042337,-537.49596528,0.00015299,2]
[330758536,1719759042347,-1562.5,0.00015299,2]
[330758538,1719759042356,-500.0,0.00015299,2]
[330758541,1719759042366,-1302.09,0.00015299,2]
[330758542,1719759042375,-506.23553151,0.00015299,2]
[330758545,1719759042385,-633.02,0.00015299,2]
[330758546,1719759042395,-500.0,0.00015299,2]
[330758548,1719759042405,-855.48,0.00015299,2]
[330758551,1719759042415,-151.0,0.00015299,2]
[330758553,1719759042425,-151.0,0.00015299,2]
[330758555,1719759042433,-151.0,0.00015299,2]
[330758556,1719759042443,-151.0,0.00015299,2]
[330758558,1719759042452,-151.0,0.00015299,2]
[330758561,1719759042461,-151.0,0.00015299,2]
[330758562,1719759042471,-151.0,0.00015299,2]
[330758565,1719759042480,-151.0,0.00015299,2]
[330758566,1719759042490,-151.0,0.00015299,2]
[330758569,1719759042499,-151.0,0.00015299,2]
[330758570,1719759042509,-151.0,0.00015299,2]
[330758573,1719759042518,-523.21322067,0.00015299,2]
[330758575,1719759042528,-151.0,0.00015299,2]
[330758576,1719759042537,-189.0,0.00015299,2]
[330758579,1719759042546,-585.12,0.00015299,2]
[330758581,1719759042556,-2738.43,0.00015299,2]
[330758582,1719759042565,-151.0,0.00015299,2]
[330758584,1719759042575,-514.89319093,0.00015299,2]
[330758586,1719759042585,-500.0,0.00015299,2]
[330758588,1719759042594,-504.25480397,0.00015299,2]
[330758590,1719759042603,-500.0,0.00015299,2]
[330758592,1719759042612,-500.0,0.00015299,2]
[330758594,1719759042622,-500.0,0.00015299,2]
[330758597,1719759042631,-500.0,0.00015299,2]
[330758599,1719759042640,-1023.61,0.00015299,2]
[330758601,1719759042650,-500.0,0.00015299,2]
[330758602,1719759042659,-500.0,0.00015299,2]
[330758605,1719759042669,-1587.36,0.00015299,2]
[330758606,1719759042678,-720.53,0.00015299,2]
[330758608,1719759042688,-871.82,0.00015299,2]
[330758610,1719759042697,-500.0,0.00015299,2]
[330758612,1719759042707,-500.0,0.00015299,2]
[330758614,1719759042717,-500.0,0.00015299,2]
[330758616,1719759042726,-500.0,0.00015299,2]
[330758628,1719759042826,-500.0,0.00015299,2]
[330758630,1719759042836,-790.79,0.00015299,2]
[330758633,1719759042847,-628.18,0.00015299,2]
[330758636,1719759042856,-581.65,0.00015299,2]
[330758639,1719759042866,-1512.02,0.00015299,2]
[330758642,1719759042875,-188.18270437,0.00015299,2]
[330758645,1719759042885,-500.0,0.00015299,2]
[330758648,1719759042894,-555.92,0.00015299,2]
[330758651,1719759042904,-500.0,0.00015299,2]
[330758654,1719759042913,-507.09445584,0.00015299,2]
[330758657,1719759042922,-500.0,0.00015299,2]
[330758660,1719759042931,-1512.82,0.00015299,2]
[330758662,1719759042941,-754.69,0.00015299,2]
[330758665,1719759042950,-501.58207022,0.00015299,2]
[330758668,1719759042959,-500.0,0.00015299,2]
[330758671,1719759042968,-1256.43,0.00015299,2]
[330758674,1719759042978,-500.0,0.00015299,2]
[330758678,1719759042987,-500.0,0.00015299,2]
[330758682,1719759042999,-500.0,0.00015299,2]
[330758685,1719759043009,-509.77482491,0.00015299,2]
[330758690,1719759043018,-500.0,0.00015299,2]
[330758693,1719759043027,-500.0,0.00015299,2]
[330758697,1719759043037,-500.0,0.00015299,2]
[330758701,1719759043047,-500.0,0.00015299,2]
[330758705,1719759043056,-1382.61,0.00015299,2]
[330758709,1719759043066,-511.13,0.00015299,2]
[330758713,1719759043075,-305.09834405,0.00015299,2]
[330758717,1719759043085,-500.0,0.00015299,2]
[330758721,1719759043094,-500.0,0.00015299,2]
[330758725,1719759043104,-500.0,0.00015299,2]
[330758729,1719759043114,-500.0,0.00015299,2]
[330758733,1719759043124,-537.90911443,0.00015299,2]
[330758737,1719759043134,-500.09,0.00015299,2]
[330758741,1719759043144,-500.0,0.00015299,2]
[330758745,1719759043153,-500.0,0.00015299,2]
[330758749,1719759043162,-500.0,0.00015299,2]
[330758753,1719759043171,-500.0,0.00015299,2]
[330758757,1719759043181,-500.0,0.00015299,2]
[330758761,1719759043190,-500.0,0.00015299,2]
[330758765,1719759043199,-520.98,0.00015299,2]
[330758769,1719759043209,-500.0,0.00015299,2]
[330758773,1719759043218,-803.02,0.00015299,2]
[330758777,1719759043227,-513.17311613,0.00015299,2]
[330758781,1719759043236,-500.0,0.00015299,2]
[330758785,1719759043247,-262.24930435,0.00015299,2]
[330758789,1719759043257,-500.0,0.00015299,2]
[330758793,1719759043266,-518.2,0.00015299,2]
[330758797,1719759043275,-500.0,0.00015299,2]
[330758801,1719759043285,-500.0,0.00015299,2]
[330758804,1719759043294,-746.09,0.00015299,2]
[330758808,1719759043303,-500.0,0.00015299,2]
[330758812,1719759043312,-1696.79,0.00015299,2]
[330758816,1719759043322,-500.0,0.00015299,2]
[330758820,1719759043331,-18248.33,0.00015299,2]
[330758824,1719759043340,-500.0,0.00015299,2]
[330758827,1719759043350,-518.62875156,0.00015299,2]
[330758830,1719759043360,-612.6,0.00015299,2]
[330758833,1719759043370,-500.0,0.00015299,2]
[330758837,1719759043379,-500.0,0.00015299,2]
[330758840,1719759043388,-500.0,0.00015299,2]
[330758843,1719759043397,-508.45257702,0.00015299,2]
[330758846,1719759043407,-500.0,0.00015299,2]
[330758848,1719759043416,-500.0,0.00015299,2]
[330758851,1719759043425,-500.0,0.00015299,2]
[330758854,1719759043435,-500.0,0.00015299,2]
[330758857,1719759043444,-151.0,0.00015299,2]
[330758860,1719759043454,-500.0,0.00015299,2]
[330758863,1719759043463,-151.0,0.00015299,2]
[330758866,1719759043473,-151.0,0.00015299,2]
[330758869,1719759043483,-151.0,0.00015299,2]
[330758871,1719759043492,-151.0,0.00015299,2]
[330758874,1719759043501,-151.0,0.00015299,2]
[330758877,1719759043511,-500.0,0.00015299,2]
[330758880,1719759043520,-500.0,0.00015299,2]
[330758883,1719759043530,-1488.78,0.00015299,2]
[330758886,1719759043539,-500.0,0.00015299,2]
[330758888,1719759043549,-500.09932432,0.00015299,2]
[330758891,1719759043559,-3478.08,0.00015299,2]
[330758894,1719759043569,-510.37990973,0.00015299,2]
[330758898,1719759043579,-500.0,0.00015299,2]
[330758900,1719759043588,-549.01,0.00015299,2]
[330758902,1719759043598,-500.0,0.00015299,2]
[330758904,1719759043607,-587.55,0.00015299,2]
[330758906,1719759043616,-500.0,0.00015299,2]
[330758909,1719759043626,-500.0,0.00015299,2]
[330758912,1719759043635,-290.16226717,0.00015299,2]
[330758915,1719759043646,-500.0,0.00015299,2]
[330758918,1719759043655,-500.15,0.00015299,2]
[330758921,1719759043665,-500.0,0.00015299,2]
[330758924,1719759043675,-806.39,0.00015299,2]
[330758927,1719759043684,-500.0,0.00015299,2]
[330758930,1719759043693,-505.11533947,0.00015299,2]
[330758933,1719759043702,-500.0,0.00015299,2]
[330758936,1719759043711,-500.0,0.00015299,2]
[330758939,1719759043721,-500.0,0.00015299,2]
[330758942,1719759043731,-562.37,0.00015299,2]
[330758945,1719759043741,-635.80447038,0.00015299,2]
[330758948,1719759043750,-963.57,0.00015299,2]
[330758951,1719759043760,-500.0,0.00015299,2]
[330758954,1719759043770,-500.0,0.00015299,2]
[330758957,1719759043779,-500.0,0.00015299,2]
[330758960,1719759043788,-1914.76,0.00015299,2]
[330758963,1719759043798,-506.58658053,0.00015299,2]
[330758966,1719759043807,-2964.06,0.00015299,2]
[330758969,1719759043817,-276.786709,0.00015299,2]
[330758972,1719759043826,-276.786709,0.00015299,2]
[330758975,1719759043835,-500.0,0.00015299,2]
[330758978,1719759043845,-276.786709,0.00015299,2]
[330758981,1719759043856,-276.786709,0.00015299,2]
[330758983,1719759043865,-276.786709,0.00015299,2]
[330758986,1719759043875,-276.786709,0.00015299,2]
[330758989,1719759043885,-276.786709,0.00015299,2]
[330758992,1719759043894,-276.786703,0.00015299,2]
[330758995,1719759043904,-507.62001724,0.00015299,2]
[330758998,1719759043915,-500.0,0.00015299,2]
[330759001,1719759043924,-250.2275,0.00015299,2]
[330759004,1719759043933,-250.2275,0.00015299,2]
[330759007,1719759043945,-649.4,0.00015299,2]
[330759010,1719759043955,-250.2275,0.00015299,2]
[330759013,1719759043964,-250.2275,0.00015299,2]
[330759016,1719759043974,-500.0,0.00015299,2]
[330759019,1719759043983,-250.2275,0.00015299,2]
[330759022,1719759043992,-250.2275,0.00015299,2]
[330759024,1719759044002,-250.2275,0.00015299,2]
[330759028,1719759044017,-250.227499,0.00015299,2]
[330759032,1719759044027,-500.0,0.00015299,2]
[330759034,1719759044036,-500.0,0.00015299,2]
[330759038,1719759044046,-502.71155641,0.00015299,2]
[330759039,1719759044058,-500.0,0.00015299,2]
[330759043,1719759044068,-627.36491239,0.00015299,2]
[330759046,1719759044077,-500.0,0.00015299,2]
[330759050,1719759044088,-500.0,0.00015299,2]
[330759053,1719759044098,-500.0,0.00015299,2]
[330759055,1719759044107,-500.0,0.00015299,2]
[330759058,1719759044116,-500.0,0.00015299,2]
[330759061,1719759044125,-160.005492,0.00015299,2]
[330759064,1719759044135,-160.005492,0.00015299,2]
[330759067,1719759044145,-160.005492,0.00015299,2]
[330759070,1719759044154,-160.005492,0.00015299,2]
[330759074,1719759044163,-1463.29,0.00015299,2]
[330759077,1719759044174,-160.005492,0.00015299,2]
[330759079,1719759044184,-160.005492,0.00015299,2]
[330759081,1719759044193,-160.005492,0.00015299,2]
[330759085,1719759044202,-160.005502,0.00015299,2]
[330759087,1719759044212,-500.0,0.00015299,2]
[330759090,1719759044221,-500.0,0.00015299,2]
[330759093,1719759044231,-500.0,0.00015299,2]
[330759096,1719759044240,-500.0,0.00015299,2]
[330759099,1719759044252,-234.00245064,0.00015299,2]
[330759103,1719759044261,-500.0,0.00015299,2]
[330759105,1719759044271,-259.7614997,0.00015299,2]
[330759108,1719759044280,-500.0,0.00015299,2]
[330759111,1719759044289,-500.0,0.00015299,2]
[330759114,1719759044299,-500.0,0.00015299,2]
[330759117,1719759044308,-703.9,0.00015299,2]
[330759120,1719759044317,-500.0,0.00015299,2]
[330759123,1719759044327,-900.33,0.00015299,2]
[330759126,1719759044336,-500.0,0.00015299,2]
[330759129,1719759044345,-500.0,0.00015299,2]
[330759132,1719759044355,-500.0,0.00015299,2]
[330759135,1719759044365,-500.0,0.00015299,2]
[330759138,1719759044374,-500.0,0.00015299,2]
[330759142,1719759044383,-500.0,0.00015299,2]
[330759145,1719759044393,-1277.19,0.00015299,2]
[330759148,1719759044402,-600.27,0.00015299,2]
[330759150,1719759044411,-494.74240555,0.00015299,2]
[330759153,1719759044424,-500.0,0.00015299,2]
[330759156,1719759044433,-1075.04,0.00015299,2]
[330759159,1719759044446,-500.0,0.00015299,2]
[330759162,1719759044455,-500.0,0.00015299,2]
[330759164,1719759044465,-2143.19,0.00015299,2]
[330759166,1719759044474,-500.0,0.00015299,2]
[330759168,1719759044483,-642.22,0.00015299,2]
[330759171,1719759044494,-500.0,0.00015299,2]
[330759174,1719759044503,-500.0,0.00015299,2]
[330759194,1719759044597,-500.0,0.00015299,2]
[330759197,1719759044607,-500.0,0.00015299,2]
[330759200,1719759044617,-544.96,0.00015299,2]
[330759203,1719759044626,-500.0,0.00015299,2]
[330759206,1719759044635,-2509.51,0.00015299,2]
[330759209,1719759044645,-628.58,0.00015339,2]
[330759212,1719759044654,-568.43,0.00015339,2]
[330759216,1719759044664,-500.0,0.00015339,2]
[330759219,1719759044674,-500.0,0.00015357,2]
[330759221,1719759044683,-500.0,0.00015357,2]
[330759224,1719759044692,-520.88959233,0.00015357,2]
[330759227,1719759044700,-2593.85,0.00015357,2]
[330759230,1719759044710,-500.0,0.00015357,2]
[330759233,1719759044719,-522.44,0.00015357,2]
[330759236,1719759044728,-576.24,0.00015357,2]
[330759239,1719759044737,-1396.74,0.00015357,2]
[330759242,1719759044746,-500.0,0.00015357,2]
[330759245,1719759044755,-1779.49,0.00015357,2]
[330759248,1719759044764,-500.0,0.00015357,2]
[330759251,1719759044773,-1440.51,0.00015357,2]
[330759254,1719759044782,-2429.21,0.00015357,2]
[330759257,1719759044791,-649.54,0.00015357,2]
[330759259,1719759044800,-835.69,0.00015357,2]
[330759262,1719759044810,-610.51,0.00015357,2]
[330759265,1719759044819,-500.0,0.00015357,2]
[330759268,1719759044828,-500.0,0.00015357,2]
[330759271,1719759044838,-645.19,0.00015357,2]
[330759274,1719759044847,-500.0,0.00015357,2]
[330759276,1719759044856,-504.63061151,0.00015358,2]
[330759279,1719759044865,-500.0,0.00015358,2]
[330759282,1719759044874,-509.92266804,0.00015358,2]
[330759285,1719759044883,-500.0,0.00015358,2]
[330759288,1719759044892,-1682.43,0.00015358,2]
[330759291,1719759044902,-500.0,0.00015358,2]
[330759294,1719759044913,-500.0,0.00015358,2]
[330759297,1719759044922,-500.0,0.00015358,2]
[330759300,1719759044931,-962.72,0.00015358,2]
[330759303,1719759044941,-500.0,0.00015358,2]
[330759306,1719759044950,-605.53090476,0.00015358,2]
[330759309,1719759044959,-554.93,0.00015359,2]
[330759312,1719759044968,-500.0,0.00015359,2]
[330759315,1719759044977,-500.0,0.00015359,2]
[330759319,1719759044988,-23513.71,0.00015359,2]
[330759322,1719759044997,-780.46,0.00015359,2]
[330759325,1719759045011,-500.0,0.00015359,2]
[330759328,1719759045022,-808.28,0.00015359,2]
[330759331,1719759045032,-4042.5,0.0001536,2]
[330759334,1719759045041,-4042.5,0.0001536,2]
[330759337,1719759045052,-684.14,0.0001536,2]
[330759339,1719759045063,-3036.38,0.0001536,2]
[330759342,1719759045073,-11624.58,0.0001536,2]
[330759346,1719759045083,-2504.72,0.0001536,2]
[330759348,1719759045092,-500.0,0.0001536,2]
[330759352,1719759045101,-1840.67,0.0001536,2]
[330759355,1719759045111,-2035.49,0.0001536,2]
[330759358,1719759045120,-20545.62,0.0001536,2]
[330759360,1719759045129,-4042.5,0.00015361,2]
[330759364,1719759045138,-4042.5,0.00015362,2]
[330759366,1719759045148,-1608.77358981,0.00015365,2]
[330759527,1719759046790,-2433.72641019,0.00015365,2]
[330759529,1719759046799,-4042.5,0.00015365,2]
[330759531,1719759046810,-4042.5,0.00015365,2]
[330759533,1719759046819,-10000.0,0.00015366,2]
[330759535,1719759046828,-7170.39252097,0.00015366,2]
[330759537,1719759046838,-500.0,0.00015367,2]
[330759539,1719759046848,-150.0,0.0001537,2]
[330759541,1719759046857,-877.0,0.0001537,2]
[330759543,1719759046867,-13112.05529415,0.00015385,2]
[330759545,1719759046875,-151.36,0.00015417,2]
[330759547,1719759046885,-211.303,0.00015417,2]
[330759549,1719759046894,-235.629,0.00015417,2]
[330759551,1719759046903,-250.0,0.00015417,2]
[330759553,1719759046912,-213.103,0.00015417,2]
[330759555,1719759046922,-206.0005558,0.000155,2]
[330759557,1719759046931,-153.0,0.000155,2]
[330759559,1719759046941,-153.0,0.000155,2]
[330759561,1719759046950,-206.0005558,0.000155,2]
[330759563,1719759046960,-153.0,0.000155,2]
[330759565,1719759046969,-308.3064217,0.000155,2]
[330759567,1719759046978,-153.0,0.000155,2]
[330759569,1719759046987,-153.0,0.000155,2]
[330759571,1719759046996,-153.0,0.000155,2]
[330759573,1719759047010,-206.0005558,0.000155,2]
[330759575,1719759047020,-153.0,0.000155,2]
[330759577,1719759047029,-153.0,0.000156,2]
[330759579,1719759047039,-153.0,0.000156,2]
[330759581,1719759047049,-206.0005558,0.000156,2]
[330759583,1719759047058,-153.0,0.000156,2]
[330759585,1719759047069,-153.0,0.000156,2]
[330759587,1719759047079,-153.0,0.000156,2]
[330759588,1719759047091,-153.0,0.000156,2]
[330759591,1719759047102,-209.447226,0.000156,2]
[330759593,1719759047112,-153.0,0.000156,2]
[330759595,1719759047121,-153.0,0.000156,2]
[330759596,1719759047131,-206.0005558,0.000156,2]
[330759598,1719759047140,-153.0,0.000156,2]
[330759600,1719759047150,-205.8057007,0.000156,2]
[330759603,1719759047159,-153.0,0.000156,2]
[330759604,1719759047169,-153.0,0.000156,2]
[330759606,1719759047179,-153.0,0.000156,2]
[330759608,1719759047189,-153.0,0.000156,2]
[330759610,1719759047203,-306.0,0.000156,2]
[330759612,1719759047212,-153.0,0.000156,2]
[330759615,1719759047222,-153.0,0.000156,2]
[330759616,1719759047231,-153.0,0.000156,2]
[330759618,1719759047240,-153.0,0.000156,2]
[330759620,1719759047252,-153.0,0.000156,2]
[330759622,1719759047262,-153.0,0.000156,2]
[330759624,1719759047272,-153.0,0.000156,2]
[330759626,1719759047281,-153.0,0.000156,2]
[330759628,1719759047291,-153.0,0.000156,2]
[330759630,1719759047300,-153.0,0.000156,2]
[330759632,1719759047310,-309.0228219,0.000156,2]
[330759634,1719759047320,-153.0,0.000156,2]
[330759636,1719759047329,-153.0,0.000156,2]
[330759638,1719759047338,-153.0,0.000156,2]
[330759640,1719759047349,-153.0,0.000156,2]
[330759642,1719759047359,-153.0,0.000156,2]
[330759644,1719759047368,-153.0,0.000156,2]
[330759646,1719759047378,-413.3437853,0.000156,2]
[330759648,1719759047387,-153.0,0.000156,2]
[330759650,1719759047396,-153.0,0.000156,2]
[330759652,1719759047406,-153.0,0.000156,2]
[330759654,1719759047415,-153.0,0.000156,2]
[330759656,1719759047425,-206.0005558,0.000156,2]
[330759658,1719759047434,-153.723461,0.000156,2]
[330759660,1719759047443,-153.0,0.000156,2]
[330759662,1719759047453,-153.0,0.000156,2]
[330759664,1719759047462,-206.0005558,0.000156,2]
[330759666,1719759047471,-153.0,0.000156,2]
[330759668,1719759047481,-153.0,0.000156,2]
[330759669,1719759047490,-153.0,0.000156,2]
[330759671,1719759047499,-206.0005558,0.000156,2]
[330759673,1719759047508,-411.8956333,0.000156,2]
[330759675,1719759047518,-153.0,0.000156,2]
[330759677,1719759047527,-153.0,0.000156,2]
[330759679,1719759047537,-153.0,0.000156,2]
[330759690,1719759047627,-206.0005558,0.000156,2]
[330759692,1719759047637,-306.0,0.000156,2]
[330759694,1719759047646,-153.0,0.000156,2]
[330759696,1719759047655,-153.0,0.000156,2]
[330759698,1719759047664,-306.0,0.000156,2]
[330759700,1719759047675,-153.0,0.000156,2]
[330759702,1719759047684,-206.0005558,0.000156,2]
[330759704,1719759047693,-153.0,0.000156,2]
[330759706,1719759047702,-206.0005558,0.000156,2]
[330759708,1719759047712,-206.0005558,0.000156,2]
[330759710,1719759047721,-153.0,0.000156,2]
[330759712,1719759047730,-153.0,0.000156,2]
[330759714,1719759047739,-153.0,0.000156,2]
[330759716,1719759047750,-153.0,0.000156,2]
[330759718,1719759047759,-153.0,0.000157,2]
[330759720,1719759047767,-153.0,0.000157,2]
[330759722,1719759047777,-153.0,0.000157,2]
[330759724,1719759047786,-153.0,0.000157,2]
[330759726,1719759047795,-153.0,0.000157,2]
[330759727,1719759047804,-153.0,0.000157,2]
[330759728,1719759047813,-153.0,0.000157,2]
[330759729,1719759047821,-206.0005558,0.000157,2]
[330759730,1719759047830,-153.0,0.000157,2]
[330759731,1719759047839,-153.0,0.000157,2]
[330759732,1719759047847,-153.0,0.000157,2]
[330759733,1719759047856,-153.0,0.000157,2]
[330759734,1719759047865,-206.0005558,0.000157,2]
[330759735,1719759047874,-153.0,0.000157,2]
[330759736,1719759047882,-206.0005558,0.000157,2]
[330759737,1719759047891,-153.0,0.000157,2]
[330759738,1719759047899,-153.0,0.000157,2]
[330759739,1719759047908,-206.0005558,0.000157,2]
[330759740,1719759047918,-249.7857961,0.000157,2]
[330759741,1719759047927,-153.0,0.000157,2]
[330759742,1719759047935,-153.0,0.000157,2]
[330759743,1719759047944,-206.0005558,0.000157,2]
[330759744,1719759047954,-153.0,0.000157,2]